[Event "Titled Tuesday Blitz April 4 Late 2023"]
[White "Vargas, Mauricio"]
[Black "Brahami, Lamine"]
[WhiteFideId "4404572"]
[BlackFideId "7905637"]
[WhiteElo "1998"]
[BlackElo "2088"]
[Result "0-1"]
[Round "10"]
[TimeControl "180+2"]
[Date "2023.04.04"]
[WhiteClock "0:00:13"]
[BlackClock "0:01:44"]

1. e4 {[%clk 0:02:53]}  c6 {[%clk 0:02:59]} 2. f4 {[%clk 0:02:45]}  d5 {[%clk 0:02:50]} 3. e5 {[%clk 0:02:32]}  e6 {[%clk 0:02:49]} 4. Nf3 {[%clk 0:02:26]}  Bc5 {[%clk 0:02:46]} 5. d4 {[%clk 0:02:12]}  Bb6 {[%clk 0:02:45]} 6. g3 {[%clk 0:02:11]}  Ne7 {[%clk 0:02:38]} 7. Bg2 {[%clk 0:02:11]}  O-O {[%clk 0:02:31]} 8. O-O {[%clk 0:02:07]}  c5 {[%clk 0:02:29]} 9. c3 {[%clk 0:02:02]}  cxd4 {[%clk 0:02:28]} 10. cxd4 {[%clk 0:02:01]}  Nbc6 {[%clk 0:02:28]} 11. Nc3 {[%clk 0:01:58]}  Nf5 {[%clk 0:02:27]} 12. g4 {[%clk 0:01:54]}  Nfxd4 {[%clk 0:02:25]} 13. Kh1 {[%clk 0:01:50]}  Nxf3 {[%clk 0:02:23]} 14. Bxf3 {[%clk 0:01:48]}  f6 {[%clk 0:02:23]} 15. exf6 {[%clk 0:01:48]}  Qxf6 {[%clk 0:02:24]} 16. g5 {[%clk 0:01:46]}  Qe7 {[%clk 0:02:23]} 17. h3 {[%clk 0:01:45]}  Nd4 {[%clk 0:02:22]} 18. Bg4 {[%clk 0:01:40]}  Nf5 {[%clk 0:02:15]} 19. Kh2 {[%clk 0:00:42]}  Ne3 {[%clk 0:02:12]} 20. Bxe3 {[%clk 0:00:39]}  Bxe3 {[%clk 0:02:13]} 21. Qd3 {[%clk 0:00:35]}  Bxf4+ {[%clk 0:02:06]} 22. Kh1 {[%clk 0:00:30]}  Qxg5 {[%clk 0:01:56]} 23. Rg1 {[%clk 0:00:22]}  Qh6 {[%clk 0:01:49]} 24. Raf1 {[%clk 0:00:16]}  Bd7 {[%clk 0:01:45]} 25. Nxd5 {[%clk 0:00:13]}  Bc6 {[%clk 0:01:44]} 0-1


[Site "https://www.chess.com"]

[Event "Titled Tuesday Blitz April 4 Late 2023"]
[White "Srdanovic, Jovana"]
[Black "Matute Escobar, Roxanny"]
[WhiteFideId "954810"]
[BlackFideId "3926028"]
[WhiteElo "2145"]
[BlackElo "1844"]
[Result "0-1"]
[Round "10"]
[TimeControl "180+2"]
[Date "2023.04.04"]
[WhiteClock "0:00:05"]
[BlackClock "0:00:19"]

1. d4 {[%clk 0:03:00]}  Nf6 {[%clk 0:02:59]} 2. c4 {[%clk 0:03:00]}  g6 {[%clk 0:03:00]} 3. Nc3 {[%clk 0:03:00]}  Bg7 {[%clk 0:03:01]} 4. e4 {[%clk 0:02:59]}  d6 {[%clk 0:03:01]} 5. Nf3 {[%clk 0:02:48]}  O-O {[%clk 0:03:02]} 6. Be2 {[%clk 0:02:49]}  e5 {[%clk 0:03:02]} 7. O-O {[%clk 0:02:48]}  Nc6 {[%clk 0:03:02]} 8. d5 {[%clk 0:02:47]}  Ne7 {[%clk 0:03:02]} 9. Kh1 {[%clk 0:02:48]}  Ne8 {[%clk 0:03:01]} 10. Ng1 {[%clk 0:02:30]}  f5 {[%clk 0:03:01]} 11. Bf3 {[%clk 0:02:31]}  Rf7 {[%clk 0:02:52]} 12. g3 {[%clk 0:02:23]}  Bf8 {[%clk 0:02:50]} 13. Bg2 {[%clk 0:02:18]}  f4 {[%clk 0:02:50]} 14. Nf3 {[%clk 0:02:13]}  Nf6 {[%clk 0:02:33]} 15. Ng5 {[%clk 0:02:07]}  Bg4 {[%clk 0:02:18]} 16. f3 {[%clk 0:02:03]}  Bc8 {[%clk 0:02:12]} 17. Nxf7 {[%clk 0:02:04]}  Kxf7 {[%clk 0:02:11]} 18. gxf4 {[%clk 0:02:04]}  exf4 {[%clk 0:02:12]} 19. Bxf4 {[%clk 0:02:04]}  h6 {[%clk 0:02:07]} 20. e5 {[%clk 0:02:01]}  Nh5 {[%clk 0:02:03]} 21. e6+ {[%clk 0:01:59]}  Kg7 {[%clk 0:02:02]} 22. Qd4+ {[%clk 0:01:52]}  Kh7 {[%clk 0:02:02]} 23. Ne4 {[%clk 0:01:40]}  Nf5 {[%clk 0:02:01]} 24. Qd2 {[%clk 0:01:37]}  Qh4 {[%clk 0:01:57]} 25. Be3 {[%clk 0:01:25]}  Nhg3+ {[%clk 0:01:51]} 26. Nxg3 {[%clk 0:01:24]}  Nxg3+ {[%clk 0:01:52]} 27. Kg1 {[%clk 0:01:23]}  Nxf1 {[%clk 0:01:52]} 28. Rxf1 {[%clk 0:01:23]}  Bg7 {[%clk 0:01:52]} 29. Bf2 {[%clk 0:01:19]}  Qxc4 {[%clk 0:01:52]} 30. b3 {[%clk 0:01:08]}  Qb5 {[%clk 0:01:46]} 31. Bd4 {[%clk 0:01:01]}  Qxd5 {[%clk 0:01:44]} 32. Rd1 {[%clk 0:00:55]}  Bxe6 {[%clk 0:01:30]} 33. Bxg7 {[%clk 0:00:52]}  Qxd2 {[%clk 0:01:30]} 34. Rxd2 {[%clk 0:00:52]}  Kxg7 {[%clk 0:01:31]} 35. Rc2 {[%clk 0:00:51]}  c6 {[%clk 0:01:29]} 36. Re2 {[%clk 0:00:50]}  Kf6 {[%clk 0:01:28]} 37. Kf2 {[%clk 0:00:50]}  Rf8 {[%clk 0:01:22]} 38. Rd2 {[%clk 0:00:47]}  Ke5 {[%clk 0:01:16]} 39. Re2+ {[%clk 0:00:47]}  Kf6 {[%clk 0:01:12]} 40. Rd2 {[%clk 0:00:47]}  Bd5 {[%clk 0:01:11]} 41. h4 {[%clk 0:00:42]}  Re8 {[%clk 0:01:09]} 42. Kg3 {[%clk 0:00:41]}  Re3 {[%clk 0:01:05]} 43. Kf2 {[%clk 0:00:39]}  Rc3 {[%clk 0:01:05]} 44. Kg3 {[%clk 0:00:27]}  a5 {[%clk 0:00:55]} 45. h5 {[%clk 0:00:23]}  gxh5 {[%clk 0:00:52]} 46. Kh4 {[%clk 0:00:21]}  Ke5 {[%clk 0:00:48]} 47. f4+ {[%clk 0:00:18]}  Kxf4 {[%clk 0:00:48]} 48. Bxd5 {[%clk 0:00:17]}  cxd5 {[%clk 0:00:47]} 49. Rxd5 {[%clk 0:00:18]}  Rc5 {[%clk 0:00:45]} 50. Rxd6 {[%clk 0:00:17]}  Rg5 {[%clk 0:00:45]} 51. Rxh6 {[%clk 0:00:17]}  Rg1 {[%clk 0:00:44]} 52. Rf6+ {[%clk 0:00:15]}  Ke3 {[%clk 0:00:44]} 53. Kxh5 {[%clk 0:00:13]}  Rg2 {[%clk 0:00:45]} 54. Rb6 {[%clk 0:00:13]}  Rxa2 {[%clk 0:00:40]} 55. Rxb7 {[%clk 0:00:11]}  Kd4 {[%clk 0:00:39]} 56. Kg4 {[%clk 0:00:11]}  Kc3 {[%clk 0:00:39]} 57. Kf4 {[%clk 0:00:12]}  Rb2 {[%clk 0:00:39]} 58. Ra7 {[%clk 0:00:12]}  Kb4 {[%clk 0:00:38]} 59. Rb7+ {[%clk 0:00:12]}  Ka3 {[%clk 0:00:35]} 60. Ra7 {[%clk 0:00:13]}  Kb4 {[%clk 0:00:36]} 61. Rb7+ {[%clk 0:00:13]}  Kc3 {[%clk 0:00:33]} 62. Ra7 {[%clk 0:00:14]}  Ra2 {[%clk 0:00:33]} 63. Rb7 {[%clk 0:00:13]}  Ra3 {[%clk 0:00:33]} 64. Ke4 {[%clk 0:00:11]}  Rxb3 {[%clk 0:00:33]} 65. Rc7+ {[%clk 0:00:11]}  Kb2 {[%clk 0:00:33]} 66. Ra7 {[%clk 0:00:12]}  Rb4+ {[%clk 0:00:29]} 67. Kd3 {[%clk 0:00:12]}  a4 {[%clk 0:00:29]} 68. Kd2 {[%clk 0:00:12]}  a3 {[%clk 0:00:28]} 69. Rc7 {[%clk 0:00:12]}  a2 {[%clk 0:00:25]} 70. Rc2+ {[%clk 0:00:13]}  Ka3 {[%clk 0:00:25]} 71. Rc3+ {[%clk 0:00:12]}  Rb3 {[%clk 0:00:24]} 72. Rc1 {[%clk 0:00:11]}  Rb1 {[%clk 0:00:25]} 73. Rc3+ {[%clk 0:00:11]}  Kb4 {[%clk 0:00:24]} 74. Rc2 {[%clk 0:00:06]}  a1=Q {[%clk 0:00:23]} 75. Kd3 {[%clk 0:00:07]}  Rd1+ {[%clk 0:00:22]} 76. Ke2 {[%clk 0:00:07]}  Qd4 {[%clk 0:00:20]} 77. Kf3 {[%clk 0:00:05]}  Qd3+ {[%clk 0:00:19]} 0-1


[Site "https://www.chess.com"]

[Event "Titled Tuesday Blitz April 4 Late 2023"]
[White "Winkels, Marcel"]
[Black "Joubert, Dantelle"]
[WhiteFideId "1003887"]
[BlackFideId "14310813"]
[WhiteElo "1900"]
[BlackElo "1507"]
[Result "1-0"]
[Round "10"]
[TimeControl "180+2"]
[Date "2023.04.04"]
[WhiteClock "0:00:12"]
[BlackClock "0:00:01"]

1. e4 {[%clk 0:03:00]}  c5 {[%clk 0:02:57]} 2. Nf3 {[%clk 0:02:59]}  d6 {[%clk 0:02:57]} 3. Bb5+ {[%clk 0:02:58]}  Bd7 {[%clk 0:02:56]} 4. c4 {[%clk 0:02:58]}  Bxb5 {[%clk 0:02:47]} 5. cxb5 {[%clk 0:02:57]}  Nf6 {[%clk 0:02:47]} 6. Nc3 {[%clk 0:02:55]}  g6 {[%clk 0:02:47]} 7. O-O {[%clk 0:02:48]}  Bg7 {[%clk 0:02:43]} 8. d4 {[%clk 0:02:31]}  cxd4 {[%clk 0:02:42]} 9. Nxd4 {[%clk 0:02:31]}  O-O {[%clk 0:02:41]} 10. Be3 {[%clk 0:02:30]}  a6 {[%clk 0:02:22]} 11. Rc1 {[%clk 0:02:25]}  Qd7 {[%clk 0:02:16]} 12. Qe2 {[%clk 0:02:19]}  axb5 {[%clk 0:01:52]} 13. Ncxb5 {[%clk 0:02:12]}  Nc6 {[%clk 0:01:48]} 14. Nc3 {[%clk 0:02:01]}  Ra5 {[%clk 0:01:35]} 15. a3 {[%clk 0:01:56]}  Rc8 {[%clk 0:01:00]} 16. Rfd1 {[%clk 0:01:53]}  Ne5 {[%clk 0:00:58]} 17. Ncb5 {[%clk 0:01:36]}  Nxe4 {[%clk 0:00:43]} 18. Rxc8+ {[%clk 0:01:27]}  Qxc8 {[%clk 0:00:41]} 19. Rc1 {[%clk 0:01:27]}  Nc6 {[%clk 0:00:41]} 20. Bd2 {[%clk 0:01:24]}  Nxd2 {[%clk 0:00:37]} 21. Qxd2 {[%clk 0:01:16]}  Ra6 {[%clk 0:00:24]} 22. h3 {[%clk 0:01:01]}  Qd7 {[%clk 0:00:18]} 23. Nf3 {[%clk 0:00:54]}  Rb6 {[%clk 0:00:15]} 24. a4 {[%clk 0:00:52]}  h6 {[%clk 0:00:13]} 25. b3 {[%clk 0:00:51]}  Ra6 {[%clk 0:00:11]} 26. Qe3 {[%clk 0:00:50]}  Ra8 {[%clk 0:00:10]} 27. Re1 {[%clk 0:00:44]}  Re8 {[%clk 0:00:10]} 28. Rd1 {[%clk 0:00:42]}  Kh7 {[%clk 0:00:09]} 29. Qb6 {[%clk 0:00:41]}  Rd8 {[%clk 0:00:05]} 30. Qe3 {[%clk 0:00:23]}  Re8 {[%clk 0:00:02]} 31. Rc1 {[%clk 0:00:19]}  Rd8 {[%clk 0:00:02]} 32. Qe4 {[%clk 0:00:14]}  Re8 {[%clk 0:00:01]} 33. Qd4 {[%clk 0:00:12]} 1-0


[Site "https://www.chess.com"]

[Event "Titled Tuesday Blitz April 4 Late 2023"]
[White "Fedoseev, Vladimir"]
[Black "Duda, Jan-Krzysztof"]
[WhiteFideId "24130737"]
[BlackFideId "1170546"]
[WhiteElo "2752"]
[BlackElo "2790"]
[Result "0-1"]
[Round "11"]
[TimeControl "180+2"]
[Date "2023.04.04"]
[WhiteClock "0:00:02"]
[BlackClock "0:00:05"]

1. b3 {[%clk 0:03:00]}  Nf6 {[%clk 0:02:55]} 2. Bb2 {[%clk 0:03:01]}  d5 {[%clk 0:02:54]} 3. Nf3 {[%clk 0:03:00]}  Bf5 {[%clk 0:02:54]} 4. d3 {[%clk 0:02:57]}  h6 {[%clk 0:02:52]} 5. Nbd2 {[%clk 0:02:58]}  e6 {[%clk 0:02:53]} 6. g3 {[%clk 0:02:54]}  Be7 {[%clk 0:02:52]} 7. e4 {[%clk 0:02:48]}  Bh7 {[%clk 0:02:50]} 8. Bg2 {[%clk 0:02:46]}  O-O {[%clk 0:02:47]} 9. Qe2 {[%clk 0:02:45]}  c5 {[%clk 0:02:45]} 10. Ne5 {[%clk 0:02:42]}  Nbd7 {[%clk 0:02:37]} 11. f4 {[%clk 0:02:40]}  Rc8 {[%clk 0:02:25]} 12. O-O {[%clk 0:02:33]}  a6 {[%clk 0:02:10]} 13. exd5 {[%clk 0:02:28]}  Nxd5 {[%clk 0:01:57]} 14. a3 {[%clk 0:01:58]}  Nxe5 {[%clk 0:01:42]} 15. fxe5 {[%clk 0:01:52]}  b5 {[%clk 0:01:42]} 16. h4 {[%clk 0:01:45]}  Qc7 {[%clk 0:01:23]} 17. Kh2 {[%clk 0:01:39]}  Nb6 {[%clk 0:01:23]} 18. c4 {[%clk 0:01:33]}  Rcd8 {[%clk 0:01:13]} 19. Be4 {[%clk 0:01:31]}  bxc4 {[%clk 0:01:07]} 20. dxc4 {[%clk 0:01:21]}  Bxe4 {[%clk 0:00:51]} 21. Nxe4 {[%clk 0:01:19]}  Nd7 {[%clk 0:00:52]} 22. Nf6+ {[%clk 0:01:12]}  gxf6 {[%clk 0:00:18]} 23. exf6 {[%clk 0:01:10]}  Nxf6 {[%clk 0:00:19]} 24. Rxf6 {[%clk 0:01:10]}  Bxf6 {[%clk 0:00:19]} 25. Bxf6 {[%clk 0:01:08]}  Rd4 {[%clk 0:00:19]} 26. Bxd4 {[%clk 0:00:54]}  cxd4 {[%clk 0:00:20]} 27. Qg4+ {[%clk 0:00:53]}  Kh7 {[%clk 0:00:21]} 28. Qxd4 {[%clk 0:00:54]}  Rd8 {[%clk 0:00:21]} 29. Qe3 {[%clk 0:00:51]}  a5 {[%clk 0:00:17]} 30. Rf1 {[%clk 0:00:49]}  Kg7 {[%clk 0:00:17]} 31. c5 {[%clk 0:00:48]}  e5 {[%clk 0:00:13]} 32. b4 {[%clk 0:00:47]}  axb4 {[%clk 0:00:13]} 33. axb4 {[%clk 0:00:48]}  Rd4 {[%clk 0:00:14]} 34. Qc3 {[%clk 0:00:46]}  Qc6 {[%clk 0:00:11]} 35. Rf2 {[%clk 0:00:41]}  f6 {[%clk 0:00:11]} 36. Rd2 {[%clk 0:00:23]}  Qe4 {[%clk 0:00:11]} 37. b5 {[%clk 0:00:17]}  Qe1 {[%clk 0:00:06]} 38. Rc2 {[%clk 0:00:16]}  Qf1 {[%clk 0:00:06]} 39. Qb2 {[%clk 0:00:02]}  Rd1 {[%clk 0:00:05]} 40. g4 {[%clk 0:00:01]}  Qg1+ {[%clk 0:00:04]} 41. Kh3 {[%clk 0:00:02]}  Rd3# {[%clk 0:00:05]} 0-1


[Site "https://www.chess.com"]

[Event "Titled Tuesday Blitz April 4 Late 2023"]
[White "Bortnyk, Olexandr"]
[Black "Hakobyan, Aram"]
[WhiteFideId "14120828"]
[BlackFideId "13306677"]
[WhiteElo "2734"]
[BlackElo "2584"]
[Result "1/2-1/2"]
[Round "11"]
[TimeControl "180+2"]
[Date "2023.04.04"]
[WhiteClock "0:00:11"]
[BlackClock "0:00:06"]

1. d4 {[%clk 0:03:00]}  g6 {[%clk 0:03:00]} 2. Nc3 {[%clk 0:03:01]}  Bg7 {[%clk 0:03:00]} 3. e4 {[%clk 0:03:01]}  c5 {[%clk 0:03:00]} 4. Be3 {[%clk 0:03:02]}  cxd4 {[%clk 0:03:00]} 5. Bxd4 {[%clk 0:03:02]}  Bxd4 {[%clk 0:03:01]} 6. Qxd4 {[%clk 0:03:03]}  Nf6 {[%clk 0:03:01]} 7. Nf3 {[%clk 0:03:03]}  Nc6 {[%clk 0:03:02]} 8. Qe3 {[%clk 0:03:03]}  d6 {[%clk 0:03:02]} 9. h3 {[%clk 0:03:03]}  O-O {[%clk 0:03:00]} 10. Bc4 {[%clk 0:03:00]}  Qb6 {[%clk 0:02:48]} 11. Qxb6 {[%clk 0:02:59]}  axb6 {[%clk 0:02:49]} 12. O-O-O {[%clk 0:02:58]}  Kg7 {[%clk 0:02:36]} 13. Rhe1 {[%clk 0:02:55]}  Ra5 {[%clk 0:02:34]} 14. a3 {[%clk 0:02:53]}  Be6 {[%clk 0:02:32]} 15. Bxe6 {[%clk 0:02:32]}  fxe6 {[%clk 0:02:33]} 16. e5 {[%clk 0:02:33]}  Nxe5 {[%clk 0:02:32]} 17. Nxe5 {[%clk 0:02:24]}  dxe5 {[%clk 0:02:31]} 18. f3 {[%clk 0:02:19]}  Rc8 {[%clk 0:02:19]} 19. Kb1 {[%clk 0:02:14]}  Kf7 {[%clk 0:02:07]} 20. Ne4 {[%clk 0:02:09]}  h6 {[%clk 0:02:03]} 21. Nxf6 {[%clk 0:02:09]}  Kxf6 {[%clk 0:02:02]} 22. Rd7 {[%clk 0:02:02]}  Rac5 {[%clk 0:01:57]} 23. Re2 {[%clk 0:01:29]}  R8c7 {[%clk 0:01:54]} 24. Rxc7 {[%clk 0:01:27]}  Rxc7 {[%clk 0:01:55]} 25. c3 {[%clk 0:01:28]}  Rc4 {[%clk 0:01:30]} 26. Kc2 {[%clk 0:01:21]}  Kf5 {[%clk 0:01:30]} 27. Kd3 {[%clk 0:01:19]}  Rh4 {[%clk 0:01:25]} 28. b3 {[%clk 0:00:57]}  g5 {[%clk 0:01:18]} 29. a4 {[%clk 0:00:49]}  h5 {[%clk 0:01:07]} 30. b4 {[%clk 0:00:49]}  g4 {[%clk 0:01:05]} 31. Re4 {[%clk 0:00:11]}  gxh3 {[%clk 0:00:40]} 32. Rxh4 {[%clk 0:00:12]}  hxg2 {[%clk 0:00:40]} 33. Rxh5+ {[%clk 0:00:11]}  Kf6 {[%clk 0:00:39]} 34. Rh6+ {[%clk 0:00:10]}  Kf7 {[%clk 0:00:16]} 35. Rh7+ {[%clk 0:00:10]}  Kf8 {[%clk 0:00:11]} 36. Rh8+ {[%clk 0:00:09]}  Kf7 {[%clk 0:00:12]} 37. Rh7+ {[%clk 0:00:10]}  Kf6 {[%clk 0:00:12]} 38. Rh6+ {[%clk 0:00:11]}  Kf7 {[%clk 0:00:06]} 39. Rh7+ {[%clk 0:00:11]} 1/2-1/2


[Site "https://www.chess.com"]

[Event "Titled Tuesday Blitz April 4 Late 2023"]
[White "Andreikin, Dmitry"]
[Black "Alekseenko, Kirill"]
[WhiteFideId "4158814"]
[BlackFideId "4135539"]
[WhiteElo "2736"]
[BlackElo "2683"]
[Result "1-0"]
[Round "11"]
[TimeControl "180+2"]
[Date "2023.04.04"]
[WhiteClock "0:00:14"]
[BlackClock "0:00:15"]

1. Nf3 {[%clk 0:03:00]}  d5 {[%clk 0:02:59]} 2. c4 {[%clk 0:03:01]}  d4 {[%clk 0:02:58]} 3. Na3 {[%clk 0:03:00]}  Nc6 {[%clk 0:02:51]} 4. g3 {[%clk 0:02:59]}  e5 {[%clk 0:02:51]} 5. d3 {[%clk 0:02:59]}  Bb4+ {[%clk 0:02:38]} 6. Nd2 {[%clk 0:02:58]}  a5 {[%clk 0:02:27]} 7. Bg2 {[%clk 0:02:57]}  Nf6 {[%clk 0:02:28]} 8. O-O {[%clk 0:02:56]}  O-O {[%clk 0:02:28]} 9. Nc2 {[%clk 0:02:56]}  Bd6 {[%clk 0:02:24]} 10. b3 {[%clk 0:02:51]}  Re8 {[%clk 0:02:22]} 11. Bb2 {[%clk 0:02:51]}  Bf5 {[%clk 0:02:19]} 12. Re1 {[%clk 0:02:47]}  Qd7 {[%clk 0:02:19]} 13. a3 {[%clk 0:02:39]}  Bf8 {[%clk 0:02:19]} 14. Nf3 {[%clk 0:02:34]}  h6 {[%clk 0:02:18]} 15. Qd2 {[%clk 0:02:26]}  Qd6 {[%clk 0:01:40]} 16. Red1 {[%clk 0:01:52]}  Bh7 {[%clk 0:01:39]} 17. Rab1 {[%clk 0:01:29]}  Rad8 {[%clk 0:01:39]} 18. b4 {[%clk 0:01:25]}  axb4 {[%clk 0:01:35]} 19. axb4 {[%clk 0:01:26]}  Nxb4 {[%clk 0:01:05]} 20. Ba3 {[%clk 0:01:21]}  c5 {[%clk 0:01:05]} 21. Nxb4 {[%clk 0:01:21]}  cxb4 {[%clk 0:01:06]} 22. Bxb4 {[%clk 0:01:21]}  Qc7 {[%clk 0:01:03]} 23. Ba5 {[%clk 0:01:21]}  Qe7 {[%clk 0:00:57]} 24. Bxd8 {[%clk 0:01:20]}  Rxd8 {[%clk 0:00:58]} 25. Qa5 {[%clk 0:01:17]}  e4 {[%clk 0:00:56]} 26. Ne1 {[%clk 0:00:45]}  Ng4 {[%clk 0:00:38]} 27. Bxe4 {[%clk 0:00:38]}  Bxe4 {[%clk 0:00:36]} 28. dxe4 {[%clk 0:00:38]}  Qxe4 {[%clk 0:00:37]} 29. Qxd8 {[%clk 0:00:34]}  Qxe2 {[%clk 0:00:30]} 30. Qxd4 {[%clk 0:00:29]}  Ne5 {[%clk 0:00:21]} 31. Qd5 {[%clk 0:00:17]}  Qh5 {[%clk 0:00:18]} 32. Kg2 {[%clk 0:00:14]}  Qf5 {[%clk 0:00:15]} 33. Nf3 {[%clk 0:00:14]} 1-0


[Site "https://www.chess.com"]

[Event "Titled Tuesday Blitz April 4 Late 2023"]
[White "Naroditsky, Daniel"]
[Black "Chigaev, Maksim"]
[WhiteFideId "2026961"]
[BlackFideId "4108116"]
[WhiteElo "2633"]
[BlackElo "2547"]
[Result "1-0"]
[Round "11"]
[TimeControl "180+2"]
[Date "2023.04.04"]
[WhiteClock "0:00:03"]
[BlackClock "0:00:06"]

1. d4 {[%clk 0:03:00]}  Nf6 {[%clk 0:02:56]} 2. Nc3 {[%clk 0:03:01]}  d5 {[%clk 0:02:57]} 3. Bf4 {[%clk 0:03:01]}  g6 {[%clk 0:02:57]} 4. e3 {[%clk 0:03:01]}  Nh5 {[%clk 0:02:55]} 5. Be5 {[%clk 0:02:59]}  f6 {[%clk 0:02:52]} 6. Bg3 {[%clk 0:02:57]}  c6 {[%clk 0:02:51]} 7. Bd3 {[%clk 0:02:48]}  Bg7 {[%clk 0:02:47]} 8. Nf3 {[%clk 0:02:44]}  Na6 {[%clk 0:02:25]} 9. a3 {[%clk 0:02:42]}  Nc7 {[%clk 0:02:24]} 10. e4 {[%clk 0:02:40]}  O-O {[%clk 0:02:19]} 11. Qe2 {[%clk 0:02:39]}  dxe4 {[%clk 0:02:16]} 12. Nxe4 {[%clk 0:02:27]}  Nd5 {[%clk 0:02:15]} 13. O-O-O {[%clk 0:02:22]}  b6 {[%clk 0:02:05]} 14. Qd2 {[%clk 0:02:14]}  Kh8 {[%clk 0:01:58]} 15. Kb1 {[%clk 0:02:11]}  Be6 {[%clk 0:01:48]} 16. Rhe1 {[%clk 0:02:00]}  Bf7 {[%clk 0:01:46]} 17. h4 {[%clk 0:01:48]}  Qc8 {[%clk 0:01:16]} 18. Bh2 {[%clk 0:01:46]}  Qg4 {[%clk 0:01:12]} 19. Ng3 {[%clk 0:01:27]}  Nhf4 {[%clk 0:01:07]} 20. Bf1 {[%clk 0:01:28]}  b5 {[%clk 0:01:01]} 21. Re4 {[%clk 0:01:26]}  Bh6 {[%clk 0:00:38]} 22. Ne2 {[%clk 0:00:39]}  Nxe2 {[%clk 0:00:38]} 23. Rxg4 {[%clk 0:00:15]}  Bxd2 {[%clk 0:00:35]} 24. Rxd2 {[%clk 0:00:16]}  f5 {[%clk 0:00:33]} 25. Be5+ {[%clk 0:00:16]}  Kg8 {[%clk 0:00:31]} 26. Rg5 {[%clk 0:00:17]}  Nef4 {[%clk 0:00:32]} 27. Rg3 {[%clk 0:00:12]}  Nh5 {[%clk 0:00:24]} 28. Rh3 {[%clk 0:00:13]}  h6 {[%clk 0:00:24]} 29. Rh1 {[%clk 0:00:13]}  Kh7 {[%clk 0:00:18]} 30. Bd3 {[%clk 0:00:13]}  Ndf6 {[%clk 0:00:18]} 31. Re2 {[%clk 0:00:12]}  Bd5 {[%clk 0:00:19]} 32. Rhe1 {[%clk 0:00:11]}  e6 {[%clk 0:00:08]} 33. Nd2 {[%clk 0:00:11]}  a5 {[%clk 0:00:05]} 34. f3 {[%clk 0:00:11]}  b4 {[%clk 0:00:05]} 35. a4 {[%clk 0:00:11]}  Rad8 {[%clk 0:00:05]} 36. b3 {[%clk 0:00:10]}  Rd7 {[%clk 0:00:05]} 37. Nc4 {[%clk 0:00:09]}  Bxc4 {[%clk 0:00:06]} 38. Bxc4 {[%clk 0:00:10]}  Nd5 {[%clk 0:00:05]} 39. Kb2 {[%clk 0:00:09]}  Nhf4 {[%clk 0:00:04]} 40. Rd2 {[%clk 0:00:09]}  g5 {[%clk 0:00:04]} 41. hxg5 {[%clk 0:00:09]}  hxg5 {[%clk 0:00:05]} 42. Rh1+ {[%clk 0:00:05]}  Kg6 {[%clk 0:00:05]} 43. g3 {[%clk 0:00:05]}  Nh5 {[%clk 0:00:05]} 44. Rdh2 {[%clk 0:00:06]}  Nhf6 {[%clk 0:00:05]} 45. Rh6+ {[%clk 0:00:06]}  Kf7 {[%clk 0:00:06]} 46. f4 {[%clk 0:00:03]}  gxf4 {[%clk 0:00:06]} 47. gxf4 {[%clk 0:00:04]}  Rg8 {[%clk 0:00:07]} 48. Re1 {[%clk 0:00:04]}  Re7 {[%clk 0:00:07]} 49. Bxf6 {[%clk 0:00:03]}  Nxf6 {[%clk 0:00:07]} 50. Re5 {[%clk 0:00:03]}  Rg6 {[%clk 0:00:07]} 51. Rh1 {[%clk 0:00:03]}  Nd5 {[%clk 0:00:06]} 52. Rh8 {[%clk 0:00:03]}  Rf6 {[%clk 0:00:03]} 53. Ra8 {[%clk 0:00:03]}  Nxf4 {[%clk 0:00:03]} 54. Raxa5 {[%clk 0:00:03]}  Ng6 {[%clk 0:00:04]} 55. Rxf5 {[%clk 0:00:03]}  Kg7 {[%clk 0:00:04]} 56. Rxf6 {[%clk 0:00:03]}  Kxf6 {[%clk 0:00:05]} 57. Rc5 {[%clk 0:00:04]}  e5 {[%clk 0:00:05]} 58. Rxc6+ {[%clk 0:00:04]}  Kg5 {[%clk 0:00:06]} 59. dxe5 {[%clk 0:00:03]}  Nxe5 {[%clk 0:00:07]} 60. Rc5 {[%clk 0:00:03]}  Kf4 {[%clk 0:00:08]} 61. a5 {[%clk 0:00:04]}  Ke3 {[%clk 0:00:07]} 62. a6 {[%clk 0:00:04]}  Kd4 {[%clk 0:00:07]} 63. Rd5+ {[%clk 0:00:04]}  Ke4 {[%clk 0:00:08]} 64. Rc5 {[%clk 0:00:05]}  Kd4 {[%clk 0:00:08]} 65. Rc8 {[%clk 0:00:05]}  Ra7 {[%clk 0:00:08]} 66. Bb5 {[%clk 0:00:05]}  Kd5 {[%clk 0:00:08]} 67. Kc1 {[%clk 0:00:03]}  Kd6 {[%clk 0:00:08]} 68. Kd2 {[%clk 0:00:03]}  Ng6 {[%clk 0:00:06]} 69. Rc6+ {[%clk 0:00:03]} 1-0


[Site "https://www.chess.com"]

[Event "Titled Tuesday Blitz April 4 Late 2023"]
[White "Erigaisi Arjun"]
[Black "Holt, Conrad"]
[WhiteFideId "35009192"]
[BlackFideId "2034387"]
[WhiteElo "2737"]
[BlackElo "2592"]
[Result "0-1"]
[Round "11"]
[TimeControl "180+2"]
[Date "2023.04.04"]
[WhiteClock "0:00:35"]
[BlackClock "0:00:19"]

1. b3 {[%clk 0:03:00]}  d5 {[%clk 0:02:57]} 2. Bb2 {[%clk 0:03:01]}  Bg4 {[%clk 0:02:57]} 3. f3 {[%clk 0:03:01]}  Bd7 {[%clk 0:02:56]} 4. e4 {[%clk 0:03:01]}  e6 {[%clk 0:02:56]} 5. Qe2 {[%clk 0:02:59]}  Qe7 {[%clk 0:02:54]} 6. d4 {[%clk 0:02:56]}  Nc6 {[%clk 0:02:46]} 7. Nd2 {[%clk 0:02:57]}  Nb4 {[%clk 0:02:39]} 8. Kd1 {[%clk 0:02:38]}  O-O-O {[%clk 0:02:20]} 9. e5 {[%clk 0:02:32]}  c5 {[%clk 0:02:04]} 10. a3 {[%clk 0:02:28]}  Nc6 {[%clk 0:02:04]} 11. dxc5 {[%clk 0:02:29]}  Qxc5 {[%clk 0:02:03]} 12. b4 {[%clk 0:02:29]}  Qb6 {[%clk 0:02:02]} 13. f4 {[%clk 0:02:27]}  Nh6 {[%clk 0:01:57]} 14. Nb3 {[%clk 0:02:22]}  Nf5 {[%clk 0:01:53]} 15. Nf3 {[%clk 0:02:23]}  Ne3+ {[%clk 0:01:51]} 16. Kc1 {[%clk 0:02:23]}  Nc4 {[%clk 0:01:47]} 17. Bd4 {[%clk 0:02:17]}  Nxd4 {[%clk 0:01:46]} 18. Nbxd4 {[%clk 0:02:18]}  Kb8 {[%clk 0:01:45]} 19. Qf2 {[%clk 0:02:13]}  Rc8 {[%clk 0:01:43]} 20. Bxc4 {[%clk 0:02:09]}  Rxc4 {[%clk 0:01:43]} 21. Rd1 {[%clk 0:02:10]}  Be7 {[%clk 0:01:41]} 22. Rd3 {[%clk 0:02:06]}  Rhc8 {[%clk 0:01:40]} 23. Qe3 {[%clk 0:02:07]}  h6 {[%clk 0:01:15]} 24. Kd1 {[%clk 0:02:04]}  Ba4 {[%clk 0:01:12]} 25. Ra2 {[%clk 0:02:03]}  a5 {[%clk 0:01:05]} 26. Nd2 {[%clk 0:01:35]}  axb4 {[%clk 0:00:54]} 27. Nxc4 {[%clk 0:01:35]}  dxc4 {[%clk 0:00:54]} 28. Rd2 {[%clk 0:01:36]}  b3 {[%clk 0:00:50]} 29. cxb3 {[%clk 0:01:33]}  cxb3 {[%clk 0:00:50]} 30. Rab2 {[%clk 0:01:33]}  Bxa3 {[%clk 0:00:50]} 31. Rxb3 {[%clk 0:01:33]}  Qa6 {[%clk 0:00:36]} 32. Qd3 {[%clk 0:01:28]}  Rc4 {[%clk 0:00:31]} 33. Ke2 {[%clk 0:01:20]}  Bc5 {[%clk 0:00:30]} 34. Rdb2 {[%clk 0:00:33]}  Bxb3 {[%clk 0:00:21]} 35. Nxb3 {[%clk 0:00:34]}  Re4+ {[%clk 0:00:19]} 36. Kd2 {[%clk 0:00:35]}  Bb4+ {[%clk 0:00:18]} 37. Kc2 {[%clk 0:00:35]}  Re2+ {[%clk 0:00:19]} 0-1


[Site "https://www.chess.com"]